[Event "*** SCC Grand Prix: Titled Tuesday Blitz"]
[Site "Chess.com"]
[Date "2020.07.21"]
[Round "2"]
[White "okriak"]
[Black "Jbd735"]
[Result "1-0"]
[WhiteElo "2699"]
[BlackElo "2468"]
[TimeControl "180+1"]
[EndTime "10:18:30 PDT"]
[Termination "okriak won by resignation"]

1. Nf3 {[%clk 0:03:00.9]} 1... d5 {[%clk 0:02:59.8]} 2. e3 {[%clk 0:03:00.5]}
2... c6 {[%clk 0:03:00]} 3. c4 {[%clk 0:03:00.2]} 3... Nf6 {[%clk 0:03:00.2]} 4.
Nc3 {[%clk 0:02:59.4]} 4... e6 {[%clk 0:03:00.1]} 5. b3 {[%clk 0:02:58.2]} 5...
Nbd7 {[%clk 0:03:00]} 6. Bb2 {[%clk 0:02:57.8]} 6... Bd6 {[%clk 0:03:00.3]} 7.
d4 {[%clk 0:02:57.4]} 7... O-O {[%clk 0:03:00.2]} 8. Bd3 {[%clk 0:02:56.9]} 8...
Qe7 {[%clk 0:02:57]} 9. Qc2 {[%clk 0:02:55.7]} 9... dxc4 {[%clk 0:02:55.9]} 10.
bxc4 {[%clk 0:02:54.3]} 10... e5 {[%clk 0:02:56.2]} 11. O-O {[%clk 0:02:15.8]}
11... Re8 {[%clk 0:02:55.8]} 12. c5 {[%clk 0:02:08.5]} 12... Bc7 {[%clk
0:02:53.4]} 13. Ng5 {[%clk 0:02:07.4]} 13... h6 {[%clk 0:02:38.1]} 14. Nge4
{[%clk 0:02:06.9]} 14... exd4 {[%clk 0:02:33.4]} 15. exd4 {[%clk 0:02:02.5]}
15... Bxh2+ {[%clk 0:02:16]} 16. Kxh2 {[%clk 0:02:02.1]} 16... Ng4+ {[%clk
0:02:16.3]} 17. Kg3 {[%clk 0:02:00.2]} 17... Ndf6 {[%clk 0:02:16.6]} 18. Nxf6+
{[%clk 0:01:52.8]} 18... Qxf6 {[%clk 0:02:16.8]} 19. Ne4 {[%clk 0:01:46.2]}
19... Qg6 {[%clk 0:01:10.7]} 20. Nd6 {[%clk 0:01:36.3]} 20... Qg5 {[%clk
0:01:10.8]} 21. f4 {[%clk 0:01:31.3]} 21... Re3+ {[%clk 0:01:02.3]} 22. Rf3
{[%clk 0:01:31]} 22... Qh5 {[%clk 0:00:39.2]} 23. Rxe3 {[%clk 0:01:17.8]} 23...
Nxe3 {[%clk 0:00:40.1]} 24. Qe2 {[%clk 0:01:13.6]} 24... Qxe2 {[%clk 0:00:22.7]}
25. Bxe2 {[%clk 0:01:11.6]} 25... Be6 {[%clk 0:00:23]} 26. Kf2 {[%clk 0:01:04]}
26... Nd5 {[%clk 0:00:20.8]} 27. f5 {[%clk 0:01:04]} 27... Bd7 {[%clk
0:00:20.8]} 28. Bc4 {[%clk 0:01:02]} 28... Kf8 {[%clk 0:00:17.8]} 29. Bxd5
{[%clk 0:00:59.8]} 29... cxd5 {[%clk 0:00:18.7]} 30. Re1 {[%clk 0:00:59.5]}
30... Bc6 {[%clk 0:00:18.2]} 31. Bc1 {[%clk 0:00:56.6]} 31... b6 {[%clk
0:00:17.5]} 32. f6 {[%clk 0:00:56.3]} 32... bxc5 {[%clk 0:00:16.2]} 33. dxc5
{[%clk 0:00:55.9]} 33... Rb8 {[%clk 0:00:16.6]} 34. fxg7+ {[%clk 0:00:50.9]}
34... Kxg7 {[%clk 0:00:16.5]} 35. Nf5+ {[%clk 0:00:51.5]} 35... Kf6 {[%clk
0:00:14.6]} 36. Nd4 {[%clk 0:00:50.8]} 36... Ba4 {[%clk 0:00:10.8]} 37. Bxh6
{[%clk 0:00:49.5]} 37... Rb2+ {[%clk 0:00:09]} 38. Re2 {[%clk 0:00:49.5]} 38...
Rb4 {[%clk 0:00:09.7]} 39. Bf4 {[%clk 0:00:48]} 39... Kg6 {[%clk 0:00:06.3]} 40.
Rd2 {[%clk 0:00:44]} 40... f6 {[%clk 0:00:05.9]} 41. Bd6 {[%clk 0:00:41.7]}
41... Rc4 {[%clk 0:00:05.9]} 42. Ke3 {[%clk 0:00:40.1]} 42... Kg5 {[%clk
0:00:05.5]} 43. Bf4+ {[%clk 0:00:39.4]} 43... Kg4 {[%clk 0:00:05.2]} 44. g3
{[%clk 0:00:39.8]} 44... Rc3+ {[%clk 0:00:04.9]} 45. Rd3 {[%clk 0:00:39.6]}
45... Rxc5 {[%clk 0:00:04.9]} 46. Ra3 {[%clk 0:00:39.7]} 46... Rc4 {[%clk
0:00:04.5]} 47. Kd3 {[%clk 0:00:39.2]} 47... a6 {[%clk 0:00:03.6]} 48. Ne2
{[%clk 0:00:35]} 48... Bb5 {[%clk 0:00:03.5]} 49. Kd2 {[%clk 0:00:35.3]} 49...
Re4 {[%clk 0:00:03.1]} 50. Nc3 {[%clk 0:00:34.9]} 50... Rd4+ {[%clk 0:00:03.2]}
51. Ke1 {[%clk 0:00:33.7]} 51... Rc4 {[%clk 0:00:02.7]} 52. Nxb5 {[%clk
0:00:33.5]} 52... axb5 {[%clk 0:00:03.6]} 53. Rd3 {[%clk 0:00:32.9]} 53... d4
{[%clk 0:00:03.7]} 54. Kd2 {[%clk 0:00:33.2]} 54... b4 {[%clk 0:00:03.4]} 55.
Rb3 {[%clk 0:00:32.9]} 55... Rc3 {[%clk 0:00:03]} 56. Rxc3 {[%clk 0:00:32.8]}
56... dxc3+ {[%clk 0:00:02.3]} 57. Kc2 {[%clk 0:00:33]} 57... Kf3 {[%clk
0:00:02.7]} 58. Bd6 {[%clk 0:00:32.9]} 58... f5 {[%clk 0:00:03]} 59. Bxb4 {[%clk
0:00:33]} 59... Kxg3 {[%clk 0:00:03.8]} 60. Kxc3 {[%clk 0:00:32.7]} 60... Kf4
{[%clk 0:00:03.6]} 61. Kd4 {[%clk 0:00:32.8]} 61... Kg5 {[%clk 0:00:03.4]} 62.
Kd5 {[%clk 0:00:33]} 62... Kf6 {[%clk 0:00:03.7]} 63. Kc6 {[%clk 0:00:33.3]}
63... Ke6 {[%clk 0:00:03.5]} 64. a4 {[%clk 0:00:33.5]} 64... f4 {[%clk
0:00:04.4]} 65. a5 {[%clk 0:00:33.6]} 65... f3 {[%clk 0:00:05.3]} 66. Bc5 {[%clk
0:00:34.1]} 66... f2 {[%clk 0:00:06.2]} 67. Bxf2 {[%clk 0:00:33.9]} 67... Ke7
{[%clk 0:00:06.5]} 68. a6 {[%clk 0:00:34.1]} 68... Kd8 {[%clk 0:00:07.4]} 69. a7
{[%clk 0:00:34.5]} 69... Ke7 {[%clk 0:00:07.8]} 70. a8=Q {[%clk 0:00:34.7]} 1-0

[Event "*** SCC Grand Prix: Titled Tuesday Blitz"]
[Site "Chess.com"]
[Date "2020.07.21"]
[Round "2"]
[White "seorobert1971"]
[Black "elohunter1999"]
[Result "1/2-1/2"]
[WhiteElo "2699"]
[BlackElo "2482"]
[TimeControl "180+1"]
[EndTime "10:18:32 PDT"]
[Termination "Game drawn by repetition"]

1. e4 {[%clk 0:03:00.9]} 1... e5 {[%clk 0:02:57.8]} 2. Nf3 {[%clk 0:03:01]} 2...
Nf6 {[%clk 0:02:53.8]} 3. Nxe5 {[%clk 0:02:56.9]} 3... d6 {[%clk 0:02:53.7]} 4.
Nf3 {[%clk 0:02:57.1]} 4... Nxe4 {[%clk 0:02:53]} 5. Nc3 {[%clk 0:02:55.7]} 5...
Nxc3 {[%clk 0:02:52.9]} 6. dxc3 {[%clk 0:02:56.6]} 6... Be7 {[%clk 0:02:53.3]}
7. Be3 {[%clk 0:02:56.7]} 7... O-O {[%clk 0:02:53]} 8. Qd2 {[%clk 0:02:56.9]}
8... Nd7 {[%clk 0:02:52.9]} 9. O-O-O {[%clk 0:02:56.8]} 9... Nf6 {[%clk
0:02:52.3]} 10. Kb1 {[%clk 0:02:56.5]} 10... c5 {[%clk 0:02:41.8]} 11. h3 {[%clk
0:02:53.7]} 11... Be6 {[%clk 0:02:31.8]} 12. Ng5 {[%clk 0:02:45.4]} 12... Bd5
{[%clk 0:02:16]} 13. c4 {[%clk 0:02:29.4]} 13... Bc6 {[%clk 0:02:15.6]} 14. Bd3
{[%clk 0:02:25.7]} 14... h6 {[%clk 0:02:11.2]} 15. h4 {[%clk 0:02:14.8]} 15...
d5 {[%clk 0:02:11.1]} 16. Nf3 {[%clk 0:02:08.4]} 16... dxc4 {[%clk 0:01:42.1]}
17. Bxc4 {[%clk 0:02:08.2]} 17... Qxd2 {[%clk 0:01:39.8]} 18. Rxd2 {[%clk
0:02:04.5]} 18... b5 {[%clk 0:01:39]} 19. Bd3 {[%clk 0:01:58]} 19... Rfd8 {[%clk
0:01:23.1]} 20. Re1 {[%clk 0:01:46.6]} 20... Nd5 {[%clk 0:01:17.2]} 21. Be4
{[%clk 0:01:39.2]} 21... Nc3+ {[%clk 0:01:06.7]} 22. bxc3 {[%clk 0:01:36.6]}
22... Bxe4 {[%clk 0:01:07]} 23. Bxh6 {[%clk 0:01:06.6]} 23... Bxf3 {[%clk
0:00:52.7]} 24. Rxe7 {[%clk 0:01:01.9]} 24... Bxg2 {[%clk 0:00:41]} 25. Rxd8+
{[%clk 0:01:00.8]} 25... Rxd8 {[%clk 0:00:41.9]} 26. Be3 {[%clk 0:01:00.8]}
26... a5 {[%clk 0:00:34.8]} 27. Bxc5 {[%clk 0:00:58.2]} 27... a4 {[%clk
0:00:34.6]} 28. Bd4 {[%clk 0:00:55.9]} 28... Bf1 {[%clk 0:00:32.8]} 29. Kb2
{[%clk 0:00:53.2]} 29... Bc4 {[%clk 0:00:31.9]} 30. a3 {[%clk 0:00:48.8]} 30...
Rd5 {[%clk 0:00:28.6]} 31. Re3 {[%clk 0:00:44.3]} 31... Rh5 {[%clk 0:00:27.2]}
32. Rg3 {[%clk 0:00:44.2]} 32... g6 {[%clk 0:00:22.5]} 33. Rg4 {[%clk
0:00:43.9]} 33... Be6 {[%clk 0:00:18.1]} 34. Re4 {[%clk 0:00:42.4]} 34... Rf5
{[%clk 0:00:15.9]} 35. Kc1 {[%clk 0:00:39.9]} 35... Kh7 {[%clk 0:00:16.4]} 36.
Kd2 {[%clk 0:00:38.4]} 36... Kh6 {[%clk 0:00:16.9]} 37. Ke3 {[%clk 0:00:31.5]}
37... Kh5 {[%clk 0:00:17]} 38. Rf4 {[%clk 0:00:19.7]} 38... Rxf4 {[%clk
0:00:17]} 39. Kxf4 {[%clk 0:00:19.8]} 39... Kxh4 {[%clk 0:00:17.6]} 40. f3
{[%clk 0:00:19]} 40... Bf5 {[%clk 0:00:15.8]} 41. Ke3 {[%clk 0:00:17.1]} 41...
Bxc2 {[%clk 0:00:16]} 42. Kf4 {[%clk 0:00:16.9]} 42... Bb3 {[%clk 0:00:16.3]}
43. Ke3 {[%clk 0:00:16.7]} 43... g5 {[%clk 0:00:15.2]} 44. Bf6 {[%clk
0:00:16.4]} 44... Kh5 {[%clk 0:00:15.3]} 45. f4 {[%clk 0:00:16.4]} 45... g4
{[%clk 0:00:15.3]} 46. Kf2 {[%clk 0:00:16.5]} 46... Kg6 {[%clk 0:00:15.5]} 47.
Bd4 {[%clk 0:00:16.5]} 47... Kf5 {[%clk 0:00:15.8]} 48. Kg3 {[%clk 0:00:17.4]}
48... Bd1 {[%clk 0:00:15.5]} 49. Bc5 {[%clk 0:00:17.2]} 49... Ke4 {[%clk
0:00:15.7]} 50. Bd4 {[%clk 0:00:17.3]} 50... f5 {[%clk 0:00:15.5]} 51. Bc5
{[%clk 0:00:17]} 51... Kd5 {[%clk 0:00:15.9]} 52. Bb4 {[%clk 0:00:16.2]} 52...
Kc4 {[%clk 0:00:16.3]} 53. Kf2 {[%clk 0:00:16.3]} 53... Kd3 {[%clk 0:00:16.5]}
54. Kg3 {[%clk 0:00:17.2]} 54... Ke2 {[%clk 0:00:14.8]} 55. Bc5 {[%clk
0:00:16.9]} 55... Bb3 {[%clk 0:00:15]} 56. Bb4 {[%clk 0:00:16.8]} 56... Bc4
{[%clk 0:00:15.4]} 57. Bc5 {[%clk 0:00:16.7]} 57... Kd3 {[%clk 0:00:14.4]} 58.
Bb4 {[%clk 0:00:16.9]} 58... Kc2 {[%clk 0:00:14.1]} 59. Ba5 {[%clk 0:00:16.5]}
59... Kb3 {[%clk 0:00:14.3]} 60. Bb4 {[%clk 0:00:17.4]} 60... Kc2 {[%clk
0:00:14.2]} 61. Kf2 {[%clk 0:00:17.6]} 61... Kd3 {[%clk 0:00:14.5]} 62. Kg3
{[%clk 0:00:18.5]} 62... Ke4 {[%clk 0:00:14.8]} 63. Bc5 {[%clk 0:00:18.1]} 63...
Kd3 {[%clk 0:00:15]} 64. Bb4 {[%clk 0:00:18.8]} 1/2-1/2

[Event "*** SCC Grand Prix: Titled Tuesday Blitz"]
[Site "Chess.com"]
[Date "2020.07.21"]
[Round "2"]
[White "Diego_FloresQ"]
[Black "monalize"]
[Result "0-1"]
[WhiteElo "2485"]
[BlackElo "2282"]
[TimeControl "180+1"]
[EndTime "10:18:32 PDT"]
[Termination "monalize won on time"]

1. e4 {[%clk 0:03:00.9]} 1... c5 {[%clk 0:02:59.2]} 2. Nf3 {[%clk 0:03:00.8]}
2... d6 {[%clk 0:02:58.7]} 3. d4 {[%clk 0:03:01.4]} 3... cxd4 {[%clk 0:02:58.2]}
4. Nxd4 {[%clk 0:03:02.3]} 4... Nf6 {[%clk 0:02:58.1]} 5. Nc3 {[%clk 0:03:00.3]}
5... a6 {[%clk 0:02:58]} 6. Bg5 {[%clk 0:03:00.7]} 6... e6 {[%clk 0:02:56.7]} 7.
Qe2 {[%clk 0:03:01.2]} 7... h6 {[%clk 0:02:29.3]} 8. Bh4 {[%clk 0:03:00.8]} 8...
b5 {[%clk 0:02:23.5]} 9. f4 {[%clk 0:02:58.9]} 9... Be7 {[%clk 0:02:15.1]} 10.
O-O-O {[%clk 0:02:58.1]} 10... Qc7 {[%clk 0:02:13.6]} 11. g3 {[%clk 0:02:31.3]}
11... b4 {[%clk 0:02:02.1]} 12. Nb1 {[%clk 0:02:29.7]} 12... Nxe4 {[%clk
0:01:37.8]} 13. Bxe7 {[%clk 0:02:21.5]} 13... Qxe7 {[%clk 0:01:37.1]} 14. Bg2
{[%clk 0:02:20.8]} 14... d5 {[%clk 0:01:36.4]} 15. Bxe4 {[%clk 0:01:47]} 15...
dxe4 {[%clk 0:01:37.3]} 16. Qxe4 {[%clk 0:01:47.5]} 16... Bb7 {[%clk 0:01:36.6]}
17. Qe5 {[%clk 0:01:48.1]} 17... O-O {[%clk 0:01:16.8]} 18. Rhe1 {[%clk
0:01:45.5]} 18... Nd7 {[%clk 0:01:11.8]} 19. Qc7 {[%clk 0:01:43.4]} 19... Bd5
{[%clk 0:01:04.6]} 20. Nf5 {[%clk 0:01:34.4]} 20... Qd8 {[%clk 0:01:03.1]} 21.
Qxd8 {[%clk 0:01:30.3]} 21... Rfxd8 {[%clk 0:01:02.2]} 22. Ne7+ {[%clk
0:01:30.7]} 22... Kf8 {[%clk 0:01:02.2]} 23. Nxd5 {[%clk 0:01:31.6]} 23... exd5
{[%clk 0:01:02]} 24. Rxd5 {[%clk 0:01:32.3]} 24... Nf6 {[%clk 0:01:00.3]} 25.
Rxd8+ {[%clk 0:01:32]} 25... Rxd8 {[%clk 0:00:58.8]} 26. Nd2 {[%clk 0:01:32.9]}
26... h5 {[%clk 0:00:48.6]} 27. Nf3 {[%clk 0:01:32]} 27... Ng4 {[%clk
0:00:44.2]} 28. c3 {[%clk 0:01:24]} 28... bxc3 {[%clk 0:00:41.7]} 29. bxc3
{[%clk 0:01:16.8]} 29... Rd3 {[%clk 0:00:37.6]} 30. Ng5 {[%clk 0:00:54.1]} 30...
Rxc3+ {[%clk 0:00:35.9]} 31. Kb2 {[%clk 0:00:53.1]} 31... Rc7 {[%clk 0:00:31.9]}
32. Re2 {[%clk 0:00:46.2]} 32... g6 {[%clk 0:00:22.6]} 33. Kb3 {[%clk
0:00:41.8]} 33... Rb7+ {[%clk 0:00:19.1]} 34. Ka4 {[%clk 0:00:41.8]} 34... Rb5
{[%clk 0:00:18.7]} 35. Ne4 {[%clk 0:00:33]} 35... Kg7 {[%clk 0:00:15.9]} 36. h3
{[%clk 0:00:22.7]} 36... Nf6 {[%clk 0:00:15.1]} 37. Nd6 {[%clk 0:00:21.4]} 37...
Rd5 {[%clk 0:00:13.9]} 38. Nc4 {[%clk 0:00:19.3]} 38... Rd3 {[%clk 0:00:12.6]}
39. Re3 {[%clk 0:00:19.3]} 39... Rd4 {[%clk 0:00:11.7]} 40. Kb3 {[%clk
0:00:16.8]} 40... Nd5 {[%clk 0:00:11.2]} 41. Rf3 {[%clk 0:00:14.8]} 41... h4
{[%clk 0:00:11.5]} 42. gxh4 {[%clk 0:00:12.3]} 42... Nxf4 {[%clk 0:00:11]} 43.
Ne5 {[%clk 0:00:11.3]} 43... f5 {[%clk 0:00:09.7]} 44. h5 {[%clk 0:00:07.9]}
44... g5 {[%clk 0:00:08.9]} 45. Kc3 {[%clk 0:00:05.1]} 45... Re4 {[%clk
0:00:08.2]} 46. Nd3 {[%clk 0:00:05.7]} 46... Nxd3 {[%clk 0:00:07.4]} 47. Kxd3
{[%clk 0:00:06.6]} 47... Re5 {[%clk 0:00:07.2]} 48. Kd4 {[%clk 0:00:06.5]} 48...
Ra5 {[%clk 0:00:05.8]} 49. a3 {[%clk 0:00:03.8]} 49... Kh6 {[%clk 0:00:05.8]}
50. Rb3 {[%clk 0:00:03.4]} 50... Kxh5 {[%clk 0:00:05.5]} 51. Rd3 {[%clk
0:00:02.8]} 51... Kh4 {[%clk 0:00:05.3]} 52. Kc4 {[%clk 0:00:02.4]} 52... g4
{[%clk 0:00:04.4]} 53. hxg4 {[%clk 0:00:03]} 53... fxg4 {[%clk 0:00:03.3]} 54.
Kb4 {[%clk 0:00:02.6]} 54... Rg5 {[%clk 0:00:02.9]} 55. Rd1 {[%clk 0:00:01.6]}
55... a5+ {[%clk 0:00:03]} 0-1

[Event "*** SCC Grand Prix: Titled Tuesday Blitz"]
[Site "Chess.com"]
[Date "2020.07.21"]
[Round "2"]
[White "DonPreuss"]
[Black "Gulkov_Igor"]
[Result "0-1"]
[WhiteElo "2165"]
[BlackElo "2422"]
[TimeControl "180+1"]
[EndTime "10:18:32 PDT"]
[Termination "Gulkov_Igor won by resignation"]

1. d4 {[%clk 0:03:00.9]} 1... Nf6 {[%clk 0:02:56.7]} 2. Nc3 {[%clk 0:03:00.6]}
2... d5 {[%clk 0:02:55.4]} 3. e4 {[%clk 0:03:00.7]} 3... Nxe4 {[%clk 0:02:51.8]}
4. Nxe4 {[%clk 0:03:00.4]} 4... dxe4 {[%clk 0:02:51.7]} 5. Bc4 {[%clk 0:03:01]}
5... Bf5 {[%clk 0:02:48.9]} 6. c3 {[%clk 0:03:00.8]} 6... e6 {[%clk 0:02:47.9]}
7. Ne2 {[%clk 0:02:59.6]} 7... c5 {[%clk 0:02:46.8]} 8. d5 {[%clk 0:02:54.8]}
8... Be7 {[%clk 0:02:36.2]} 9. O-O {[%clk 0:02:52.6]} 9... O-O {[%clk
0:02:31.5]} 10. Ng3 {[%clk 0:02:52.6]} 10... Nd7 {[%clk 0:02:12.2]} 11. dxe6
{[%clk 0:02:37.8]} 11... Bxe6 {[%clk 0:02:10.5]} 12. Bxe6 {[%clk 0:02:37.5]}
12... fxe6 {[%clk 0:02:09.8]} 13. Nxe4 {[%clk 0:02:32]} 13... Nf6 {[%clk
0:02:08.6]} 14. Qe2 {[%clk 0:02:03]} 14... Nxe4 {[%clk 0:02:06.3]} 15. Qxe4
{[%clk 0:02:01.7]} 15... Qd5 {[%clk 0:02:05.7]} 16. Re1 {[%clk 0:01:57.5]} 16...
Qxe4 {[%clk 0:01:53.5]} 17. Rxe4 {[%clk 0:01:57]} 17... Kf7 {[%clk 0:01:52.3]}
18. Bf4 {[%clk 0:01:49.4]} 18... Rac8 {[%clk 0:01:44.1]} 19. Rae1 {[%clk
0:01:46.5]} 19... Rc6 {[%clk 0:01:42.8]} 20. Rd1 {[%clk 0:01:24.7]} 20... Rd8
{[%clk 0:01:41.6]} 21. Rxd8 {[%clk 0:01:23.3]} 21... Bxd8 {[%clk 0:01:40.6]} 22.
Kf1 {[%clk 0:01:22.2]} 22... Bf6 {[%clk 0:01:35.6]} 23. Re2 {[%clk 0:00:44.8]}
23... c4 {[%clk 0:01:16.1]} 24. Rd2 {[%clk 0:00:42.8]} 24... Ke8 {[%clk
0:01:15]} 25. Ke2 {[%clk 0:00:42.1]} 25... b5 {[%clk 0:00:50]} 26. Rd6 {[%clk
0:00:41.6]} 26... Rxd6 {[%clk 0:00:49.1]} 27. Bxd6 {[%clk 0:00:42.5]} 27... Kd7
{[%clk 0:00:48.7]} 28. Bc5 {[%clk 0:00:41.1]} 28... a6 {[%clk 0:00:47.8]} 29.
Ke3 {[%clk 0:00:39.5]} 29... Kc6 {[%clk 0:00:43.5]} 30. Ba3 {[%clk 0:00:39.2]}
30... Kd5 {[%clk 0:00:41.5]} 31. f3 {[%clk 0:00:30.8]} 31... g6 {[%clk
0:00:22.9]} 32. g3 {[%clk 0:00:31]} 32... h5 {[%clk 0:00:22]} 33. h3 {[%clk
0:00:29.7]} 33... Bd8 {[%clk 0:00:21.1]} 34. g4 {[%clk 0:00:27.9]} 34... Bc7
{[%clk 0:00:20.8]} 35. b3 {[%clk 0:00:21.2]} 35... cxb3 {[%clk 0:00:19.9]} 36.
axb3 {[%clk 0:00:21.2]} 36... a5 {[%clk 0:00:20]} 37. gxh5 {[%clk 0:00:17.7]}
37... gxh5 {[%clk 0:00:19.5]} 38. f4 {[%clk 0:00:17.6]} 38... a4 {[%clk
0:00:18.9]} 39. bxa4 {[%clk 0:00:17.9]} 39... bxa4 {[%clk 0:00:18.5]} 40. Kd3
{[%clk 0:00:16.8]} 40... Bxf4 {[%clk 0:00:17.7]} 41. Be7 {[%clk 0:00:16.8]}
41... Bd6 {[%clk 0:00:17]} 42. Bg5 {[%clk 0:00:16.8]} 42... a3 {[%clk
0:00:16.3]} 43. Bc1 {[%clk 0:00:17.3]} 43... a2 {[%clk 0:00:15.8]} 44. Bb2
{[%clk 0:00:17.5]} 44... e5 {[%clk 0:00:15.9]} 45. Ke3 {[%clk 0:00:15.1]} 45...
e4 {[%clk 0:00:15.5]} 46. c4+ {[%clk 0:00:12.7]} 46... Kxc4 {[%clk 0:00:15.2]}
47. Kxe4 {[%clk 0:00:13.1]} 47... Bc5 {[%clk 0:00:15.2]} 48. h4 {[%clk
0:00:10.1]} 48... Bb4 {[%clk 0:00:14.9]} 49. Kf5 {[%clk 0:00:02.6]} 49... Bc3
{[%clk 0:00:14.5]} 50. Bxc3 {[%clk 0:00:02.5]} 50... Kxc3 {[%clk 0:00:14.1]} 51.
Kg5 {[%clk 0:00:03.4]} 51... a1=Q {[%clk 0:00:13.8]} 52. Kxh5 {[%clk 0:00:04.3]}
52... Qa6 {[%clk 0:00:13.2]} 0-1

[Event "*** SCC Grand Prix: Titled Tuesday Blitz"]
[Site "Chess.com"]
[Date "2020.07.21"]
[Round "2"]
[White "RobertoJBM"]
[Black "RenarddesSurfaces"]
[Result "1/2-1/2"]
[WhiteElo "2648"]
[BlackElo "2423"]
[TimeControl "180+1"]
[EndTime "10:18:33 PDT"]
[Termination "Game drawn - insufficient material"]

1. d4 {[%clk 0:03:00.9]} 1... d5 {[%clk 0:02:58.1]} 2. c4 {[%clk 0:03:00.6]}
2... dxc4 {[%clk 0:02:58.5]} 3. Nf3 {[%clk 0:02:59.9]} 3... Nf6 {[%clk
0:02:58.8]} 4. e3 {[%clk 0:02:59.3]} 4... e6 {[%clk 0:02:59.1]} 5. Bxc4 {[%clk
0:02:59.1]} 5... a6 {[%clk 0:02:59.4]} 6. a4 {[%clk 0:02:59.4]} 6... c5 {[%clk
0:02:59.5]} 7. O-O {[%clk 0:02:59.4]} 7... Nc6 {[%clk 0:02:59.5]} 8. Qe2 {[%clk
0:02:59]} 8... cxd4 {[%clk 0:02:58.9]} 9. Rd1 {[%clk 0:02:59.2]} 9... Be7 {[%clk
0:02:59.3]} 10. exd4 {[%clk 0:02:59.1]} 10... O-O {[%clk 0:02:59.1]} 11. Nc3
{[%clk 0:02:59.7]} 11... Nb4 {[%clk 0:02:58.8]} 12. Bg5 {[%clk 0:02:59.3]} 12...
Bd7 {[%clk 0:02:58.7]} 13. Bxf6 {[%clk 0:02:38.9]} 13... Bxf6 {[%clk 0:02:57.7]}
14. d5 {[%clk 0:02:21.3]} 14... exd5 {[%clk 0:02:51.3]} 15. Nxd5 {[%clk
0:02:20.7]} 15... Nxd5 {[%clk 0:02:41.5]} 16. Bxd5 {[%clk 0:02:21.6]} 16... Qb6
{[%clk 0:02:21]} 17. Qc4 {[%clk 0:02:03.5]} 17... Rac8 {[%clk 0:02:09.8]} 18.
Qa2 {[%clk 0:01:56]} 18... Qxb2 {[%clk 0:01:42.3]} 19. Qxb2 {[%clk 0:01:45.3]}
19... Bxb2 {[%clk 0:01:43.2]} 20. Rab1 {[%clk 0:01:39.9]} 20... Bxa4 {[%clk
0:01:42.7]} 21. Rf1 {[%clk 0:00:57.4]} 21... Bf6 {[%clk 0:01:36.9]} 22. Rxb7
{[%clk 0:00:56.8]} 22... Rcd8 {[%clk 0:01:28.2]} 23. Bc4 {[%clk 0:00:51.1]}
23... Rd7 {[%clk 0:01:08.1]} 24. Rxd7 {[%clk 0:00:49.6]} 24... Bxd7 {[%clk
0:01:09]} 25. Bxa6 {[%clk 0:00:50.2]} 25... Be6 {[%clk 0:01:07.8]} 26. Rc1
{[%clk 0:00:46.3]} 26... h5 {[%clk 0:01:01.6]} 27. h3 {[%clk 0:00:44]} 27... g6
{[%clk 0:00:58.7]} 28. Rc2 {[%clk 0:00:38.7]} 28... Ra8 {[%clk 0:00:51.2]} 29.
Bc4 {[%clk 0:00:38.4]} 29... Rc8 {[%clk 0:00:44.7]} 30. Bd3 {[%clk 0:00:38.7]}
30... Rd8 {[%clk 0:00:24.9]} 31. Bc4 {[%clk 0:00:38.5]} 31... Rc8 {[%clk
0:00:25]} 32. Bd3 {[%clk 0:00:38.5]} 32... Rd8 {[%clk 0:00:25.1]} 33. Be4 {[%clk
0:00:38.5]} 33... Rd1+ {[%clk 0:00:20.7]} 34. Kh2 {[%clk 0:00:38.4]} 34... Be7
{[%clk 0:00:20.2]} 35. g3 {[%clk 0:00:37.4]} 35... Kg7 {[%clk 0:00:18.3]} 36. h4
{[%clk 0:00:37.5]} 36... Bd6 {[%clk 0:00:16.5]} 37. Kg2 {[%clk 0:00:37.8]} 37...
Ra1 {[%clk 0:00:11.3]} 38. Ng5 {[%clk 0:00:37.9]} 38... Bb3 {[%clk 0:00:07.6]}
39. Rd2 {[%clk 0:00:38]} 39... Be7 {[%clk 0:00:05.1]} 40. Bd5 {[%clk 0:00:36.4]}
40... Bxd5+ {[%clk 0:00:03.1]} 41. Rxd5 {[%clk 0:00:37.3]} 41... Bxg5 {[%clk
0:00:03.4]} 42. hxg5 {[%clk 0:00:36.6]} 42... Ra6 {[%clk 0:00:03.8]} 43. f4
{[%clk 0:00:35.1]} 43... Re6 {[%clk 0:00:04.7]} 44. Kf3 {[%clk 0:00:35.1]} 44...
Re7 {[%clk 0:00:04.1]} 45. Rd3 {[%clk 0:00:35.6]} 45... Re6 {[%clk 0:00:04.2]}
46. g4 {[%clk 0:00:36.1]} 46... hxg4+ {[%clk 0:00:03.9]} 47. Kxg4 {[%clk
0:00:37]} 47... Ra6 {[%clk 0:00:04]} 48. Rd7 {[%clk 0:00:36.9]} 48... Re6 {[%clk
0:00:03.9]} 49. Rc7 {[%clk 0:00:36.6]} 49... Rd6 {[%clk 0:00:03.9]} 50. Re7
{[%clk 0:00:36.5]} 50... Rb6 {[%clk 0:00:04.1]} 51. Re5 {[%clk 0:00:34.9]} 51...
Rc6 {[%clk 0:00:04.1]} 52. Re4 {[%clk 0:00:34.8]} 52... Ra6 {[%clk 0:00:04.1]}
53. f5 {[%clk 0:00:34.5]} 53... gxf5+ {[%clk 0:00:03.7]} 54. Kxf5 {[%clk
0:00:35.4]} 54... Ra5+ {[%clk 0:00:04.1]} 55. Kf4 {[%clk 0:00:35.1]} 55... Ra6
{[%clk 0:00:05]} 56. Kg4 {[%clk 0:00:33.1]} 56... Rg6 {[%clk 0:00:05.9]} 57. Kf5
{[%clk 0:00:32.6]} 57... Re6 {[%clk 0:00:06.8]} 58. Rd4 {[%clk 0:00:30.9]} 58...
Rg6 {[%clk 0:00:06.3]} 59. Rd7 {[%clk 0:00:30.8]} 59... Re6 {[%clk 0:00:07.2]}
60. Rd8 {[%clk 0:00:28.2]} 60... Rg6 {[%clk 0:00:08.1]} 61. Re8 {[%clk
0:00:28.7]} 61... Re6 {[%clk 0:00:08.2]} 62. Rxe6 {[%clk 0:00:19.3]} 62... fxe6+
{[%clk 0:00:07.9]} 63. Kxe6 {[%clk 0:00:20.2]} 63... Kg6 {[%clk 0:00:08.8]} 64.
Ke5 {[%clk 0:00:17.7]} 64... Kxg5 {[%clk 0:00:09.7]} 1/2-1/2